bitfinex-derivatives/quotes_SOLF0:USTF0_20250110
["timestamp","ask_amount","ask_price","bid_price","bid_amount"]
[1736483237974,2.6471,188.91,188.8,3.1116]
[1736483238184,2.6471,188.91,188.84,2.648]
[1736483239687,2.6471,188.91,188.85,2.6479]
[1736483242890,2.6471,188.91,188.86,2.6478]
[1736483243297,4.62,188.94,188.8,3.1116]
[1736483243298,4.62,188.94,188.82,9.6919098]
[1736483243594,4.62,188.94,188.89,2.6473]
[1736483244593,4.62,188.94,188.82,9.6919098]
[1736483244792,14.3119098,188.95,188.82,9.6919098]
[1736483245195,4.62,188.95,188.85,9.6919098]
[1736483245390,9.6919098,188.98,188.86,1.5532]
[1736483245793,12.3381098,188.98,188.92,2.6469]
[1736483246001,14.3119098,189.01,188.88,9.6919098]
[1736483246299,14.3119098,189.01,188.87,3.1319]
[1736483246593,14.3119098,189.01,188.88,9.6919098]
[1736483248099,2.646,188.99,188.93,2.6467]
[1736483252601,4.64,189.0,188.88,9.6919098]
[1736483252905,9.6919098,189.01,188.88,9.6919098]
[1736483253300,12.3376098,189.01,188.96,2.6464]
[1736483254305,9.6919098,189.01,188.88,9.6919098]
[1736483254506,9.6919098,189.01,188.94,2.6466]
[1736483254806,9.6919098,189.01,188.88,9.6919098]
[1736483256107,2.6459,189.0,188.88,9.6919098]
[1736483256804,2.6459,189.0,188.95,2.6465]
[1736483257504,6.19677308,188.99,188.95,2.6465]
[1736483258003,6.19677308,188.97,188.95,2.6465]
[1736483261304,6.19677308,188.99,188.95,2.6465]
[1736483264311,6.19677308,188.99,188.96,2.6464]
[1736483267110,6.19677308,188.99,188.92,6.19677308]
[1736483267414,6.19677308,189.02,188.94,6.19677308]
[1736483270218,6.19677308,189.02,188.98,2.6461]
[1736483270415,8.84237308,189.02,188.94,6.19677308]
[1736483270614,6.19677308,189.0,188.96,2.6463]
[1736483271716,6.19677308,189.0,188.97,2.6462]
[1736483271910,6.19677308,189.0,188.94,6.19677308]
[1736483273215,6.19677308,189.0,188.96,2.6464]
[1736483276132,6.19677308,189.0,188.94,6.19677308]
[1736483277424,2.6455,189.03,188.97,2.6462]
[1736483277622,6.19677308,189.01,188.94,6.19677308]
[1736483278024,6.19677308,189.01,188.96,2.6464]
[1736483278324,6.19677308,189.01,188.94,6.19677308]
[1736483278626,6.19677308,189.01,188.98,2.646]
[1736483288623,6.19677308,189.01,188.99,2.6459]
[1736483289628,146.85937322,189.06,188.96,6.19677308]
[1736483289825,6.19677308,189.04,189.01,2.6456]
[1736483291228,8.84217308,189.04,189.0,2.6458]
[1736483291429,6.19677308,189.02,189.0,2.6458]
[1736483292828,6.19677308,189.02,188.95,3.1638]
[1736483293032,6.19677308,189.0,188.95,3.1638]
[1736483293430,6.19677308,189.0,188.97,2.6463]
[1736483295033,8.84237308,189.02,188.97,2.6463]
[1736483295538,151.43937322,189.06,188.99,2.646]
[1736483295739,6.19677308,189.04,188.97,6.19677308]
[1736483295939,146.85937322,189.06,188.99,6.19677308]
[1736483296129,146.85937322,189.06,189.03,2.6454]
[1736483296839,146.85937322,189.06,188.99,6.19677308]
[1736483296840,6.19677308,189.05,189.01,2.6456]
[1736483297032,6.19677308,189.05,188.99,6.19677308]
[1736483297228,6.19677308,189.05,189.01,2.6456]
[1736483297433,6.19677308,189.03,188.97,6.19677308]
[1736483297834,6.19677308,189.03,188.98,2.6461]
[1736483298239,6.19677308,189.01,188.96,1.6457]
[1736483298436,6.19677308,189.01,188.97,2.6462]
[1736483298842,6.19677308,188.99,188.95,2.6465]
[1736483299042,146.85937322,189.07,188.95,2.6465]
[1736483299246,6.19677308,188.99,188.95,2.6465]
[1736483302339,8.84277308,188.99,188.93,2.6467]
[1736483302643,6.19677308,188.97,188.93,2.6467]
[1736483302840,6.19677308,188.95,188.9,3.0729]
[1736483303036,8.84327308,188.95,188.9,5.72]
[1736483303242,6.19677308,188.95,188.85,3.98832182]
[1736483303443,6.19677308,188.93,188.87,6.19677308]
[1736483305149,6.19677308,188.93,188.89,2.6474]
[1736483305544,6.19677308,188.93,188.87,6.19677308]
[1736483305851,6.19677308,188.93,188.9,2.6472]
[1736483309548,6.19677308,188.95,188.91,2.647]
[1736483310348,8.84337308,188.95,188.87,6.19677308]
[1736483311246,6.19677308,188.95,188.9,2.6472]
[1736483312053,6.19677308,188.95,188.89,6.19677308]
[1736483312952,6.19677308,188.95,188.85,3.98832182]
[1736483313151,6.19677308,188.95,188.91,2.647]
[1736483329364,6.19677308,188.95,188.92,2.6469]
[1736483334376,2.6467,188.94,188.9,2.6471]
[1736483336570,6.19677308,188.91,188.85,3.98832182]
[1736483336773,6.19677308,188.89,188.82,6.19677308]
[1736483337170,8.84427308,188.89,188.84,2.648]
[1736483339680,8.84427308,188.89,188.82,6.19677308]
[1736483339876,8.84427308,188.89,188.85,2.6479]
[1736483340382,6.19677308,188.92,188.86,6.19677308]
[1736483340679,6.19677308,188.94,188.88,6.19677308]
[1736483340883,4.58,188.95,188.93,2.6468]
[1736483342379,4.58,188.95,188.92,2.6469]
[1736483342579,6.19677308,188.97,188.9,6.19677308]
[1736483342986,2.6462,188.98,188.94,2.6467]
[1736483346182,146.85937322,189.04,188.92,6.19677308]
[1736483346382,6.19677308,189.0,188.92,6.19677308]
[1736483348085,8.84267308,189.0,188.95,2.6465]
[1736483349295,6.19677308,189.0,188.86,13.02253387]
[1736483349490,6.19677308,188.98,188.86,13.02253387]
[1736483349692,6.19677308,188.98,188.91,6.19677308]
[1736483350494,8.84297308,188.98,188.93,2.6467]
[1736483351294,4.58,189.01,188.91,6.19677308]
[1736483351489,6.19677308,188.99,188.94,2.6466]
[1736483352196,4.58,189.01,188.93,6.19677308]
[1736483352389,4.7731,189.05,188.95,6.19677308]
[1736483352589,6.19677308,189.04,188.97,6.19677308]
[1736483353795,6.19677308,189.04,188.99,2.646]
[1736483354996,4.58,189.07,188.97,6.19677308]
[1736483355200,4.6063,189.1,188.99,6.19677308]
[1736483355401,6.19677308,189.06,188.99,6.19677308]
[1736483355589,6.19677308,189.06,189.01,2.6457]
[1736483356691,6.19677308,189.06,188.99,6.19677308]
[1736483357895,6.19677308,189.08,189.01,6.19677308]
[1736483358102,6.19677308,189.08,189.04,2.6452]
[1736483358601,6.19677308,189.08,189.01,6.19677308]
[1736483360198,8.84157308,189.08,189.03,2.6454]
[1736483361099,6.19677308,189.08,189.03,2.6454]
[1736483364293,6.19677308,189.08,189.0,3.2057]
[1736483364496,6.19677308,189.04,189.0,3.2057]
[1736483365198,6.19677308,189.04,189.01,2.6457]
[1736483366600,6.19677308,189.06,189.02,2.6455]
[1736483372206,2.6449,189.07,189.02,2.6455]
[1736483372410,6.19677308,189.06,189.02,2.6455]
[1736483373912,2.6449,189.07,189.02,2.6455]
[1736483374314,6.19677308,189.06,189.02,2.6455]
[1736483377406,8.84177308,189.06,189.02,2.6455]
[1736483386826,6.19677308,189.06,189.03,2.6454]
[1736483388618,6.19677308,189.06,189.0,6.19677308]
[1736483388619,2.6448,189.08,189.0,6.19677308]
[1736483388824,6.19677308,189.07,189.0,6.19677308]
[1736483389331,6.19677308,189.07,189.03,2.6453]
[1736483389528,8.84167308,189.07,189.03,2.6453]
[1736483389728,183.57421653,189.13,189.02,6.19677308]
[1736483389729,146.85937322,189.13,189.02,6.19677308]
[1736483389931,6.19677308,189.1,189.02,6.19677308]
[1736483391132,6.19677308,189.1,189.05,2.645]
[1736483391133,8.84127308,189.1,189.05,2.645]
[1736483392029,8.84127308,189.1,189.06,2.6449]
[1736483393336,6.19677308,189.09,189.06,2.6449]
[1736483397232,2.6443,189.12,189.09,2.6446]
[1736483397734,8.84107308,189.12,189.09,2.6446]
[1736483399437,8.84107308,189.12,189.08,2.6447]
[1736483399639,8.84107308,189.12,189.05,6.19677308]
[1736483400564,146.85937322,189.16,189.09,6.19677308]
[1736483400948,189.77098961,189.17,189.09,6.19677308]
[1736483400949,153.0561463,189.17,189.09,6.19677308]
[1736483401141,155.6997463,189.17,189.03,13.02253387]
[1736483401362,6.19677308,189.13,189.01,13.02253387]
[1736483401564,6.19677308,189.13,189.06,6.19677308]
[1736483401865,6.19677308,189.13,189.09,2.6446]
[1736483402260,6.19677308,189.13,189.06,6.19677308]
[1736483402566,6.19677308,189.09,189.0,3.1892]
[1736483402862,6.19677308,189.09,189.02,6.19677308]
[1736483403859,6.19677308,189.05,189.0,3.1892]
[1736483404558,6.19677308,189.05,188.99,6.19677308]
[1736483405561,6.19677308,189.07,189.01,6.19677308]
[1736483405951,8.84137308,189.09,189.01,6.19677308]
[1736483406148,6.19677308,189.09,189.03,6.19677308]
[1736483406748,4.58,189.12,189.03,6.19677308]
[1736483406942,6.19677308,189.1,189.03,6.19677308]
[1736483407247,6.19677308,189.1,189.05,2.645]
[1736483408241,8.84117308,189.1,189.05,2.645]
[1736483408842,2.6443,189.12,189.06,2.645]
[1736483409145,8.84107308,189.12,189.06,2.645]
[1736483409341,10.77677308,189.14,189.09,2.6446]
[1736483409545,4.58,189.14,189.09,8.84137308]
[1736483409747,4.58,189.14,189.09,6.19677308]
[1736483411144,27.14891708,189.21,189.11,6.19677308]
[1736483411443,10.19805783,189.19,189.11,6.19677308]
[1736483411843,2.6431,189.2,189.14,2.6438]
[1736483412037,8.83987308,189.2,189.13,6.19677308]
[1736483412437,8.83987308,189.2,189.14,2.6439]
[1736483413640,8.83987308,189.2,189.13,6.19677308]
[1736483413842,8.83987308,189.2,189.15,2.6437]
[1736483415354,2.6431,189.2,189.15,2.6437]
[1736483416646,2.6423,189.26,189.2,2.6429]
[1736483416848,6.19677308,189.25,189.19,6.19677308]
[1736483417147,2.6423,189.26,189.19,6.19677308]
[1736483417348,146.85937322,189.28,189.19,6.19677308]
[1736483417542,149.50137322,189.28,189.22,2.6428]
[1736483417851,2.642,189.28,189.22,2.6428]
[1736483418445,6.19677308,189.27,189.15,1.5026]
[1736483418645,6.19677308,189.27,189.2,8.83967308]
[1736483418947,6.19677308,189.27,189.2,6.19677308]
[1736483419450,9.2498,189.32,189.22,6.19677308]
[1736483419451,6.19677308,189.29,189.22,6.19677308]
[1736483420151,6.19677308,189.31,189.24,6.19677308]
[1736483420348,3.141,189.32,189.24,6.19677308]
[1736483420550,2.6411,189.35,189.28,2.6419]
[1736483420754,8.83787308,189.35,189.28,8.83867308]
[1736483420946,8.83787308,189.35,189.28,6.19677308]
[1736483421142,2.6411,189.34,189.29,2.6418]
[1736483421745,2.6411,189.34,189.28,6.19677308]
[1736483421942,2.6411,189.34,189.28,8.83867308]
[1736483423054,2.6411,189.34,189.28,2.6419]
[1736483423352,8.83777308,189.35,189.3,2.6416]
[1736483424344,2.6413,189.33,189.28,6.19677308]
[1736483424553,8.83807308,189.33,189.26,6.19677308]
[1736483426154,8.83807308,189.33,189.27,2.6421]
[1736483426354,6.19677308,189.31,189.22,4.6766]
[1736483426552,6.19677308,189.29,189.23,6.19677308]
[1736483426752,6.19677308,189.27,189.22,3.0933]
[1736483427052,6.19677308,189.27,189.21,2.6428]
[1736483427651,8.83897308,189.27,189.21,2.6428]
[1736483429052,6.19677308,189.27,189.22,8.83957308]
[1736483430259,6.19677308,189.29,189.24,2.6425]
[1736483430456,2.6417,189.3,189.24,8.83927308]
[1736483430854,8.83817308,189.32,189.26,8.83897308]
[1736483431058,6.19677308,189.34,189.26,6.19677308]
[1736483431556,4.56,189.38,189.18,49.40494828]
[1736483431557,6.19677308,189.32,189.24,6.19677308]
[1736483432155,2.6418,189.3,189.24,8.83917308]
[1736483433358,6.19677308,189.3,189.18,49.40494828]
[1736483433560,2.6419,189.28,189.23,6.19677308]
[1736483434162,2.6419,189.28,189.23,8.83937308]
[1736483434362,2.6419,189.28,189.23,2.6426]
[1736483436657,2.6419,189.28,189.22,6.19677308]
[1736483436658,8.83837308,189.31,189.25,2.6422]
[1736483436854,8.83837308,189.31,189.24,6.19677308]
[1736483438163,8.83837308,189.31,189.26,2.6422]
[1736483439365,2.6417,189.3,189.25,2.6423]
[1736483440465,6.19677308,189.31,189.26,2.6422]
[1736483441466,2.6416,189.31,189.24,6.19677308]
[1736483441666,6.19677308,189.33,189.28,2.6419]
[1736483442366,8.83817308,189.33,189.28,2.6419]
[1736483443468,6.19677308,189.35,189.28,6.19677308]
[1736483443674,8.83777308,189.35,189.3,2.6416]
[1736483446167,2.6408,189.36,189.31,2.6415]
[1736483446367,8.83757308,189.36,189.31,2.6415]
[1736483448077,8.83757308,189.36,189.28,6.19677308]
[1736483448271,8.83757308,189.36,189.31,2.6414]
[1736483448968,8.83757308,189.36,189.32,2.6414]
[1736483449966,6.19677308,189.36,189.32,2.6414]
[1736483450371,6.19677308,189.36,189.33,2.6412]
[1736483451372,2.6407,189.37,189.33,2.6412]
[1736483453068,8.83737308,189.38,189.34,2.6411]
[1736483454268,146.85937322,189.42,189.32,6.19677308]
[1736483454471,2.6403,189.4,189.36,2.6408]
[1736483463073,2.64,189.42,189.38,2.6405]
[1736483463379,245.75791723,189.49,189.4,6.19677308]
[1736483463577,251.95469031,189.49,189.42,6.19677308]
[1736483463773,369.78763306,189.48,189.42,6.19677308]
[1736483464076,2.6392,189.48,189.42,6.19677308]
[1736483464381,153.0561463,189.51,189.45,2.6395]
[1736483465084,2.6389,189.5,189.46,2.6394]
[1736483465388,153.0561463,189.51,189.46,2.6394]
[1736483465389,146.85937322,189.51,189.46,6.19677308]
[1736483465685,6.19677308,189.53,189.46,6.19677308]
[1736483466078,2.6387,189.51,189.47,2.6393]
[1736483466381,6.19677308,189.51,189.44,6.19677308]
[1736483466783,2.639,189.49,189.44,8.83637308]
[1736483470783,2.6388,189.51,189.45,2.6395]
[1736483471389,2.6388,189.51,189.46,8.83607308]
[1736483475898,6.19677308,189.53,189.46,8.83607308]
[1736483475899,2.6386,189.52,189.46,6.19677308]
[1736483476300,9.1608,189.56,189.46,6.19677308]
[1736483476495,9.1608,189.56,189.47,2.6393]
[1736483476692,6.19677308,189.53,189.47,2.6393]
[1736483477093,2.6387,189.52,189.47,2.6393]
[1736483477303,6.19677308,189.51,189.47,2.6393]
[1736483477501,6.19677308,189.53,189.47,2.6393]
[1736483478102,6.19677308,189.55,189.49,6.19677308]
[1736483479098,6.19677308,189.55,189.5,2.6388]
[1736483479099,2.6383,189.54,189.5,2.6388]
[1736483480303,2.6385,189.53,189.49,2.639]
[1736483481501,2.6385,189.53,189.47,2.6392]
[1736483481502,6.19677308,189.53,189.47,2.6392]
[1736483481807,6.19677308,189.51,189.39,3.0561]
[1736483482000,2.6396,189.45,189.39,3.0561]
[1736483482200,6.19677308,189.45,189.39,1.5694]
[1736483482595,6.19677308,189.46,189.4,2.6402]
[1736483483105,8.83627308,189.46,189.41,2.6401]
[1736483484001,8.83607308,189.48,189.42,2.6399]
[1736483484195,8.83607308,189.48,189.42,6.19677308]
[1736483484398,6.19677308,189.48,189.42,6.19677308]
[1736483484997,6.19677308,189.48,189.44,2.6397]
[1736483485906,8.83597308,189.48,189.44,2.6397]
[1736483486902,6.19677308,189.48,189.42,6.19677308]
[1736483487107,2.6393,189.47,189.42,8.83667308]
[1736483487405,2.6393,189.47,189.42,6.19677308]
[1736483488000,2.6393,189.47,189.43,2.6398]
[1736483488802,9.2948,189.5,189.42,6.19677308]
[1736483489007,6.19677308,189.48,189.44,2.6396]
[1736483489202,6.19677308,189.48,189.42,6.19677308]
[1736483490203,8.83607308,189.48,189.43,2.6398]
[1736483491605,6.19677308,189.46,189.41,2.64]
[1736483492811,2.6399,189.43,189.39,2.6403]
[1736483493108,6.19677308,189.46,189.39,2.6403]
[1736483493308,2.6397,189.44,189.39,2.6403]
[1736483494405,6.19677308,189.44,189.39,2.6403]
[1736483494608,8.83657308,189.44,189.39,2.6403]
[1736483494909,6.19677308,189.44,189.39,2.6403]
[1736483496104,2.6399,189.43,189.39,2.6403]
[1736483496715,2.6402,189.41,189.36,2.6408]
[1736483497013,6.19677308,189.42,189.36,2.6408]
[1736483497213,2.6403,189.4,189.36,2.6408]
[1736483497414,6.19677308,189.42,189.37,2.6406]
[1736483498013,2.6402,189.41,189.37,2.6406]
[1736483498214,2.6402,189.41,189.35,6.19677308]
[1736483498215,6.19677308,189.4,189.35,2.6409]
[1736483499106,2.6404,189.39,189.35,2.6409]
[1736483502811,6.19677308,189.38,189.22,5.2855]
[1736483503012,6.19677308,189.36,189.29,6.19677308]
[1736483503514,2.6411,189.34,189.29,6.19677308]
[1736483504415,2.641,189.35,189.29,6.19677308]
[1736483504615,6.19677308,189.36,189.29,6.19677308]
[1736483505809,8.83767308,189.36,189.31,2.6415]
[1736483507319,6.19677308,189.4,189.33,6.19677308]
[1736483508120,8.83717308,189.4,189.35,2.6409]
[1736483508322,6.19677308,189.4,189.35,2.6409]
[1736483509320,2.6404,189.39,189.35,2.6409]
[1736483511813,6.19677308,189.4,189.35,2.6409]
[1736483512018,8.83707308,189.4,189.35,2.6409]
[1736483513122,2.6404,189.39,189.35,2.6409]
[1736483515826,2.6407,189.38,189.33,8.83787308]
[1736483516120,6.19677308,189.38,189.31,7.79097308]
[1736483516328,2.6408,189.36,189.32,2.6413]
[1736483516526,6.19677308,189.38,189.31,7.79097308]
[1736483518122,2.6407,189.37,189.33,2.6412]
[1736483519921,2.6407,189.37,189.32,2.6413]
[1736483521332,6.19677308,189.38,189.34,2.641]
[1736483521527,2.6404,189.39,189.34,2.641]
[1736483521933,6.19677308,189.38,189.34,2.641]
[1736483522133,8.83737308,189.38,189.34,2.641]
[1736483523138,2.6407,189.37,189.33,2.6412]
[1736483523340,6.19677308,189.34,189.15,122.46498954]
[1736483523638,4.56,189.43,189.15,122.46498954]
[1736483523639,6.19677308,189.32,189.26,6.19677308]
[1736483523843,8.83817308,189.32,189.28,2.6418]
[1736483524644,4.56,189.36,189.31,2.6415]
[1736483524841,4.56,189.41,189.3,6.19677308]
[1736483525040,6.19677308,189.4,189.32,6.19677308]
[1736483525943,8.83717308,189.4,189.35,2.6409]
[1736483526336,8.83717308,189.4,189.34,2.6411]
[1736483526633,6.19677308,189.4,189.34,2.6411]
[1736483526839,2.6404,189.39,189.34,2.6411]
[1736483528535,8.83717308,189.39,189.34,2.6411]
[1736483528741,2.6412,189.34,189.3,2.6415]
[1736483528936,6.19677308,189.35,189.27,6.19677308]
[1736483529140,4.7589,189.4,189.27,6.19677308]
[1736483529141,6.19677308,189.33,189.27,6.19677308]
[1736483529846,8.83817308,189.33,189.28,2.6419]
[1736483530844,2.6414,189.32,189.27,6.19677308]
[1736483531044,146.85937322,189.39,189.25,6.19677308]
[1736483531045,6.19677308,189.31,189.25,6.19677308]
[1736483531247,2.6418,189.29,189.24,2.6424]
[1736483531638,8.83857308,189.29,189.24,2.6424]
[1736483531847,6.19677308,189.27,189.2,1.5929]
[1736483532346,6.19677308,189.25,189.2,1.5929]
[1736483532547,6.19677308,189.25,189.18,49.40494828]
[1736483532744,8.83947308,189.23,189.18,49.40494828]
[1736483535043,8.83947308,189.23,189.18,52.04824828]
[1736483535348,8.83967308,189.21,189.13,7.74517308]
[1736483535747,8.83967308,189.21,189.16,2.6436]
[1736483536148,6.19677308,189.21,189.16,2.6436]
[1736483536550,6.19677308,189.21,189.15,6.19677308]
[1736483536746,6.19677308,189.21,189.17,2.6435]
[1736483538647,6.19677308,189.23,189.18,2.6433]
[1736483538851,6.19677308,189.23,189.17,6.19677308]
[1736483539852,6.19677308,189.23,189.17,8.84007308]
[1736483540055,6.19677308,189.23,189.17,2.6433]
[1736483540250,6.19677308,189.21,189.13,1.5484]
[1736483540459,6.19677308,189.19,189.13,1.5484]
[1736483541050,6.19677308,189.19,189.11,6.19677308]
[1736483541455,6.19677308,189.19,189.09,1.4848]
[1736483541656,6.19677308,189.17,189.11,6.19677308]
[1736483541857,6.19677308,189.17,189.11,8.84107308]
[1736483542058,6.19677308,189.17,189.09,7.68157308]
[1736483542458,8.84027308,189.17,189.11,2.6442]
[1736483542661,8.84027308,189.17,189.11,8.84097308]
[1736483543058,8.84027308,189.17,189.11,6.19677308]
[1736483543263,6.19677308,189.17,189.11,6.19677308]
[1736483543461,6.19677308,189.19,189.11,6.19677308]
[1736483543961,6.19677308,189.19,189.14,2.6439]
[1736483544363,6.19677308,189.19,189.11,6.19677308]
[1736483544565,6.19677308,189.19,189.12,2.644]
[1736483544867,2.6434,189.18,189.11,6.19677308]
[1736483545067,2.6434,189.18,189.13,2.644]
[1736483545664,6.19677308,189.17,189.13,2.644]
[1736483546966,6.19677308,189.21,189.13,6.19677308]
[1736483547166,6.19677308,189.21,189.09,1.4848]
[1736483547167,6.19677308,189.21,189.15,6.19677308]
[1736483548170,6.19677308,189.21,189.17,2.6434]
[1736483548971,6.19677308,189.21,189.15,8.84037308]
[1736483549366,6.19677308,189.21,189.13,6.19677308]
[1736483549566,6.19677308,189.21,189.09,1.4848]
[1736483549567,6.19677308,189.19,189.09,1.4848]
[1736483549767,6.19677308,189.19,189.11,6.19677308]
[1736483550273,2.6435,189.17,189.12,2.6441]
[1736483553970,6.19677308,189.17,189.09,7.68157308]
[1736483554275,2.6438,189.15,189.1,2.6443]
[1736483557076,6.19677308,189.15,189.09,1.4848]
[1736483557277,8.84087308,189.13,189.09,1.4848]
[1736483557468,4.56,189.18,189.09,1.4848]
[1736483557775,6.19677308,189.15,189.09,1.4848]
[1736483558076,2.6439,189.14,189.09,4.1293]
[1736483558475,6.19677308,189.15,189.09,1.4848]
[1736483558674,6.19677308,189.15,189.1,2.6444]
[1736483559071,2.644,189.14,189.09,4.1294]
[1736483559576,6.19677308,189.13,189.09,4.1294]
[1736483559879,2.6443,189.12,189.08,3.1301]
[1736483560380,2.6443,189.11,189.08,1.629]
[1736483561080,6.19677308,189.11,189.03,1.6304]
[1736483561269,6.19677308,189.11,189.03,7.82717308]
[1736483561971,2.6446,189.09,189.04,2.6452]
[1736483563976,2.6445,189.1,189.05,2.6451]
[1736483564176,6.19677308,189.11,189.05,6.19677308]
[1736483564981,6.19677308,189.13,189.05,6.19677308]
[1736483565180,6.19677308,189.13,189.07,2.6448]
[1736483565181,2.6442,189.12,189.07,2.6448]
[1736483566680,6.19677308,189.13,189.07,6.19677308]
[1736483567082,6.19677308,189.11,189.05,6.19677308]
[1736483567380,2.6446,189.09,189.04,2.6453]
[1736483567577,8.84137308,189.09,189.04,2.6453]
[1736483570586,8.84137308,189.09,189.05,2.6451]
[1736483570785,6.19677308,189.09,189.05,2.6451]
[1736483571080,2.6445,189.1,189.06,2.645]
[1736483571284,4.56,189.14,189.04,6.19677308]
[1736483571487,2.6443,189.11,189.04,6.19677308]
[1736483571684,2.6443,189.11,189.06,2.645]
[1736483572983,2.6443,189.11,189.07,2.6448]
[1736483574685,6.19677308,189.12,189.06,2.645]
[1736483574686,2.6445,189.1,189.06,2.645]
[1736483576587,8.84127308,189.1,189.06,2.645]
[1736483576982,8.84127308,189.1,189.02,1.6442]
[1736483577288,2.6446,189.09,189.05,2.6451]
[1736483578386,8.84127308,189.1,189.06,2.645]
[1736483580290,148.41437322,189.17,189.06,6.19677308]
[1736483580485,6.19677308,189.14,189.06,6.19677308]
[1736483580883,2.6441,189.13,189.09,2.6445]
[1736483581078,6.19677308,189.14,189.06,6.19677308]
[1736483581491,6.19677308,189.14,189.09,2.6445]
[1736483581786,6.19677308,189.14,189.06,6.19677308]
[1736483582191,2.6442,189.12,189.06,6.19677308]
[1736483582384,6.19677308,189.14,189.06,6.19677308]
[1736483584179,2.644,189.13,189.06,6.19677308]
[1736483584584,6.19677308,189.16,189.08,6.19677308]
[1736483587287,2.6439,189.14,189.1,2.6444]
[1736483587888,2.644,189.13,189.09,2.6446]
[1736483589386,8.84067308,189.14,189.09,2.6446]
[1736483590389,2.6439,189.14,189.1,2.6444]
[1736483591789,2.6441,189.13,189.08,6.19677308]
[1736483592084,6.19677308,189.15,189.08,8.84147308]
[1736483592283,6.19677308,189.13,189.02,1.6442]
[1736483592479,6.19677308,189.11,189.04,6.19677308]
[1736483594090,2.6446,189.1,189.06,2.645]
[1736483597690,146.85937322,189.18,189.06,6.19677308]
[1736483597898,6.19677308,189.13,189.06,6.19677308]
[1736483598096,6.19677308,189.15,189.06,6.19677308]
[1736483598492,2.6441,189.13,189.09,2.6445]
[1736483598692,2.6441,189.13,189.06,6.19677308]
[1736483598995,8.84087308,189.13,189.06,6.19677308]
[1736483599195,6.19677308,189.13,189.06,6.19677308]
[1736483599392,2.6442,189.12,189.08,2.6446]
[1736483603397,8.84077308,189.13,189.09,2.6446]
[1736483603701,6.19677308,189.16,189.08,6.19677308]
[1736483604199,2.6439,189.15,189.1,2.6444]
[1736483604395,6.19677308,189.16,189.1,2.6444]
[1736483604900,2.6439,189.14,189.1,2.6444]
[1736483607601,2.6438,189.15,189.1,2.6444]
[1736483610401,2.6439,189.14,189.1,2.6444]
[1736483611901,4.56,189.2,189.07,1.5782]
[1736483612105,6.19677308,189.12,189.07,1.5782]
[1736483612302,6.19677308,189.12,189.02,1.6442]
[1736483612508,2.6445,189.1,189.05,2.645]
[1736483612898,6.19677308,189.12,189.05,2.645]
[1736483613201,6.19677308,189.06,188.98,4.03432127]
[1736483613402,6.19677308,189.06,188.98,10.23109435]
[1736483614203,6.19677308,189.04,188.97,2.6461]
[1736483615002,6.19677308,189.02,188.9,13.02253387]
[1736483615206,6.19677308,189.0,188.94,2.6466]
[1736483616212,2.646,188.99,188.94,2.6466]
[1736483617306,2.646,188.99,188.92,8.84357308]
[1736483617512,6.19677308,188.98,188.92,8.84357308]
[1736483617806,6.19677308,188.98,188.92,6.19677308]
[1736483618802,6.19677308,188.98,188.9,3.1006]
[1736483619012,6.19677308,188.98,188.9,9.29737308]
[1736483619407,6.19677308,188.96,188.92,2.6469]
[1736483620008,6.19677308,188.96,188.9,11.94447308]
[1736483620514,8.84317308,188.96,188.9,11.94447308]
[1736483620808,6.19677308,188.96,188.9,9.29737308]
[1736483621020,8.84287308,188.98,188.9,9.29737308]
[1736483621219,6.19677308,188.96,188.9,3.1006]
[1736483621411,6.19677308,188.94,188.89,2.6473]
[1736483621714,8.84357308,188.94,188.88,2.6475]
[1736483622307,6.19677308,188.94,188.89,2.6474]
[1736483623012,2.6466,188.95,188.89,2.6474]
[1736483623013,2.6466,188.95,188.89,8.84417308]
[1736483623213,2.6459,189.0,188.92,2.6469]
[1736483623411,6.19677308,188.98,188.91,6.19677308]
[1736483623610,6.19677308,189.0,188.93,6.19677308]
[1736483623809,6.19677308,189.0,188.93,8.84357308]
[1736483623810,2.6461,188.99,188.93,8.84357308]
[1736483624012,6.19677308,188.98,188.93,2.6468]
[1736483624811,6.19677308,188.96,188.89,6.19677308]
[1736483625011,6.19677308,188.96,188.92,2.647]
[1736483629616,6.19677308,188.96,188.93,2.6468]
[1736483630811,6.19677308,188.96,188.94,2.6466]
[1736483631011,6.19677308,188.98,188.94,2.6466]
[1736483631416,8.84287308,188.98,188.94,2.6466]